bitfinex-derivatives/quotes_SOLF0:USTF0_20260204
["timestamp","ask_amount","ask_price","bid_price","bid_amount"]
[1770235214973,48.54318849,94.369,94.254,19.56287932]
[1770235214974,48.54318849,94.409,94.329,58.02353634]
[1770235215170,48.54318849,94.409,94.341,48.46333634]
[1770235215469,48.54318849,94.429,94.344,48.46333634]
[1770235216061,48.54318849,94.427,94.345,9.5585]
[1770235216266,48.54318849,94.427,94.345,58.02183634]
[1770235216771,48.54318849,94.427,94.355,9.5575]
[1770235216966,48.54318849,94.452,94.36,7.89906231]
[1770235217168,48.54318849,94.452,94.365,48.46333634]
[1770235217773,48.54318849,94.452,94.378,9.5552]
[1770235218471,48.54318849,94.452,94.381,48.46333634]
[1770235218677,48.54318849,94.499,94.381,48.46333634]
[1770235218970,48.54318849,94.499,94.38,7.89906231]
[1770235218971,48.54318849,94.486,94.384,48.46333634]
[1770235219973,48.54318849,94.468,94.364,48.46333634]
[1770235220371,48.54318849,94.479,94.371,48.46333634]
[1770235220874,48.54318849,94.476,94.387,9.5543]
[1770235221874,48.54318849,94.473,94.376,48.46333634]
[1770235222170,48.54318849,94.473,94.37,7.89906231]
[1770235222370,48.54318849,94.473,94.371,48.46333634]
[1770235223170,48.54318849,94.469,94.383,48.46333634]
[1770235223373,48.54318849,94.469,94.331,148.7106]
[1770235223374,48.54318849,94.469,94.343,48.46333634]
[1770235223569,48.54318849,94.432,94.343,48.46333634]
[1770235224665,48.54318849,94.432,94.321,54.67149968]
[1770235225474,55.84097239,94.419,94.323,54.67149968]
[1770235225977,55.84097239,94.416,94.326,54.67149968]
[1770235226375,55.84097239,94.414,94.326,54.67149968]
[1770235226576,55.84097239,94.414,94.297,54.67149968]
[1770235226882,148.5396,94.441,94.297,54.67149968]
[1770235226883,55.84097239,94.409,94.297,54.67149968]
[1770235227381,55.84097239,94.378,94.297,54.67149968]
[1770235227578,55.84097239,94.378,94.271,54.67149968]
[1770235228177,55.84097239,94.375,94.276,54.67149968]
[1770235228378,55.84097239,94.369,94.254,54.67149968]
[1770235228881,55.84097239,94.341,94.234,54.67149968]
[1770235229578,55.84097239,94.334,94.237,54.67149968]
[1770235230382,9.5611,94.321,94.237,54.67149968]
[1770235230587,55.84097239,94.32,94.237,54.67149968]
[1770235231178,9.5627,94.304,94.215,54.67149968]
[1770235231483,55.84097239,94.303,94.215,54.67149968]
[1770235231985,55.84097239,94.282,94.196,54.67149968]
[1770235232377,55.84097239,94.28,94.196,54.67149968]
[1770235233287,55.84097239,94.278,94.196,54.67149968]
[1770235233687,9.5666,94.267,94.196,54.67149968]
[1770235233885,9.5666,94.267,94.145,13.05171128]
[1770235233886,55.84097239,94.266,94.175,54.67149968]
[1770235234280,9.5694,94.239,94.175,54.67149968]
[1770235234487,55.84097239,94.239,94.15,54.67149968]
[1770235234887,65.41147239,94.228,94.15,54.67149968]
[1770235235096,148.74,94.314,94.15,54.67149968]
[1770235235097,55.84097239,94.293,94.15,54.67149968]
[1770235235383,55.84097239,94.293,94.161,54.67149968]
[1770235235784,55.84097239,94.254,94.176,9.5757]
[1770235235987,55.84097239,94.254,94.161,54.67149968]
[1770235237491,55.84097239,94.251,94.161,64.24869968]
[1770235237880,9.5696,94.237,94.161,54.67149968]
[1770235238085,55.84097239,94.236,94.161,54.67149968]
[1770235238485,55.84097239,94.236,94.165,9.5767]
[1770235238687,55.84097239,94.236,94.166,54.67149968]
[1770235239091,55.84097239,94.236,94.168,54.67149968]
[1770235239695,9.5711,94.222,94.146,54.67149968]
[1770235239994,55.84097239,94.236,94.146,54.67149968]
[1770235240385,65.41177239,94.225,94.149,54.67149968]
[1770235240590,55.84097239,94.225,94.149,54.67149968]
[1770235241098,9.5731,94.202,94.124,54.67149968]
[1770235241591,9.5742,94.191,94.124,54.67149968]
[1770235242486,65.41627239,94.181,94.103,54.67149968]
[1770235242687,55.84097239,94.181,94.103,54.67149968]
[1770235243093,55.84097239,94.181,94.105,9.5829]
[1770235243293,55.84097239,94.181,94.105,64.25439968]
[1770235243593,55.84097239,94.177,94.092,9.5843]
[1770235243797,55.84097239,94.177,94.093,54.67149968]
[1770235244193,65.41787239,94.165,94.093,54.67149968]
[1770235244800,55.84097239,94.15,94.05,54.67149968]
[1770235245696,55.84097239,94.15,94.059,9.5876]
[1770235246092,9.5803,94.131,94.059,9.5876]
[1770235246703,55.84097239,94.15,94.07,54.67149968]
[1770235247408,7.89906231,94.18,94.07,54.67149968]
[1770235247409,55.84097239,94.146,94.07,54.67149968]
[1770235248597,65.41977239,94.146,94.07,54.67149968]
[1770235249402,55.84097239,94.146,94.071,54.67149968]
[1770235250202,55.84097239,94.146,94.08,9.5854]
[1770235250405,55.84097239,94.146,94.071,54.67149968]
[1770235251006,55.84097239,94.146,94.08,9.5854]
[1770235251195,55.84097239,94.146,94.071,54.67149968]
[1770235251395,55.84097239,94.146,94.049,54.67149968]
[1770235251602,55.84097239,94.122,94.049,54.67149968]
[1770235251905,55.84097239,94.122,94.028,54.67149968]
[1770235252101,55.84097239,94.106,94.028,54.67149968]
[1770235252605,65.42477239,94.098,94.029,9.5906]
[1770235252806,55.84097239,94.119,94.03,54.67149968]
[1770235253705,55.84097239,94.102,94.03,54.67149968]
[1770235254209,66.29806399,94.101,94.03,64.26209968]
[1770235254403,56.71466399,94.101,94.03,54.67149968]
[1770235255105,56.71466399,94.101,94.041,56.29092888]
[1770235255702,56.71466399,94.101,94.043,9.5893]
[1770235255909,56.71466399,94.121,94.043,56.29092888]
[1770235256398,66.29726399,94.109,94.043,56.29092888]
[1770235256803,56.71466399,94.109,94.055,9.588]
[1770235257402,56.71466399,94.107,94.021,56.29092888]
[1770235258208,9.5844,94.091,94.032,9.5903]
[1770235258413,56.71466399,94.107,94.032,9.5903]
[1770235258813,56.71466399,94.107,94.021,56.29092888]
[1770235258814,59.66347192,94.101,94.022,9.5914]
[1770235259111,59.66347192,94.101,94.022,70.95969799]
[1770235259605,59.66347192,94.101,94.03,9.5905]
[1770235260313,9.5847,94.089,94.03,9.5905]
[1770235260514,59.66347192,94.101,94.022,61.36829799]
[1770235260712,9.5865,94.071,94.001,61.36829799]
[1770235261014,59.66347192,94.119,94.022,9.5914]
[1770235261219,59.66347192,94.119,94.021,61.36829799]
[1770235261614,59.66347192,94.119,94.042,61.36829799]
[1770235262322,9.5825,94.11,94.046,70.95719799]
[1770235262618,59.66347192,94.119,94.046,61.36829799]
[1770235262817,59.66347192,94.119,94.065,9.5869]
[1770235263021,59.66347192,94.119,94.046,61.36829799]
[1770235263709,59.66347192,94.116,94.046,61.36829799]
[1770235264320,59.66347192,94.135,94.046,61.36829799]
[1770235264722,9.582,94.115,94.053,70.95649799]
[1770235264926,59.66347192,94.135,94.053,61.36829799]
[1770235265111,9.581,94.124,94.069,9.5865]
[1770235265316,59.66347192,94.135,94.069,9.5865]
[1770235265712,59.66347192,94.135,94.078,9.5857]
[1770235265917,59.66347192,94.135,94.078,70.95399799]
[1770235266123,59.66347192,94.156,94.078,61.36829799]
[1770235267618,9.5789,94.145,94.088,9.5846]
[1770235268428,9.5802,94.132,94.078,61.36829799]
[1770235269220,59.66347192,94.137,94.079,9.5855]
[1770235269424,59.66347192,94.137,94.058,61.36829799]
[1770235269929,9.5818,94.116,94.058,61.36829799]
[1770235270327,59.66347192,94.137,94.06,61.36829799]
[1770235271432,59.66347192,94.137,94.008,149.2225]
[1770235271433,59.66347192,94.137,94.046,61.36829799]
[1770235272018,9.5809,94.126,94.06,9.5875]
[1770235272422,59.66347192,94.137,94.046,61.36829799]
[1770235272925,59.66347192,94.137,94.077,70.95409799]
[1770235273122,59.66347192,94.137,94.077,61.36829799]
[1770235273427,9.5798,94.136,94.077,61.36829799]
[1770235274427,59.66347192,94.137,94.077,61.36829799]
[1770235274923,59.66347192,94.189,94.077,61.36829799]
[1770235275730,9.5792,94.142,94.077,61.36829799]
[1770235276429,59.66347192,94.145,94.077,61.36829799]
[1770235277420,59.66347192,94.145,94.093,9.5841]
[1770235277731,59.66347192,94.145,94.077,61.36829799]
[1770235277935,59.66347192,94.171,94.077,61.36829799]
[1770235278134,59.66347192,94.171,94.081,61.36829799]
[1770235278333,69.24007192,94.168,94.108,9.5825]
[1770235279028,69.24127192,94.156,94.098,61.36829799]
[1770235279424,9.5804,94.131,94.077,61.36829799]
[1770235279628,59.66347192,94.131,94.05,61.36829799]
[1770235280330,59.66347192,94.131,94.073,9.5862]
[1770235281534,69.24387192,94.13,94.073,9.5862]
[1770235281733,69.24387192,94.13,94.068,61.36829799]
[1770235281934,59.66347192,94.13,94.049,61.36829799]
[1770235282133,9.5825,94.11,94.049,61.36829799]
[1770235282631,9.5816,94.119,94.059,9.5875]
[1770235283738,9.5806,94.128,94.067,9.5868]
[1770235283940,9.5806,94.128,94.049,61.36829799]
[1770235283941,60.71520202,94.128,94.049,61.36829799]
[1770235285735,9.5812,94.123,94.066,9.5869]
[1770235286537,9.5819,94.115,94.058,9.5877]
[1770235287145,60.71520202,94.104,94.031,59.01005864]
[1770235287441,60.71520202,94.104,94.033,59.01005864]
[1770235287641,60.71520202,94.104,94.037,59.01005864]
[1770235288140,9.5832,94.103,94.038,68.59985864]
[1770235288730,60.71520202,94.099,94.038,68.59985864]
[1770235288930,60.71520202,94.099,94.038,78.47502415]
[1770235289135,60.71520202,94.099,94.033,9.87516551]
[1770235289340,60.71520202,94.082,94.028,9.87516551]
[1770235289538,60.71520202,94.082,94.019,9.87516551]
[1770235289738,60.71520202,94.082,94.018,9.87516551]
[1770235289937,60.71520202,94.109,94.029,68.88522415]
[1770235290141,60.71520202,94.109,94.029,59.01005864]
[1770235290441,60.71520202,94.109,94.033,59.01005864]
[1770235290743,60.71520202,94.109,94.041,9.87516551]
[1770235291045,60.71520202,94.109,94.039,9.87516551]
[1770235291237,9.5835,94.1,94.039,9.87516551]
[1770235291540,9.5835,94.1,94.038,9.87516551]
[1770235292544,60.71520202,94.091,94.038,9.87516551]
[1770235292849,60.71520202,94.091,94.018,59.01005864]
[1770235292850,60.71520202,94.091,94.034,9.87516551]
[1770235293147,9.585,94.085,94.029,59.01005864]
[1770235293340,60.71520202,94.091,94.032,9.87516551]
[1770235293547,60.71520202,94.129,94.039,59.01005864]
[1770235293749,60.71520202,94.129,94.043,68.88522415]
[1770235294150,60.71520202,94.101,94.038,9.5897]
[1770235294448,60.71520202,94.101,94.039,68.88522415]
[1770235295243,60.71520202,94.101,94.041,68.59945864]
[1770235295447,60.71520202,94.101,94.041,59.01005864]
[1770235295843,60.71520202,94.12,94.061,9.5874]
[1770235296044,60.71520202,94.12,94.045,59.01005864]
[1770235296438,7.93290036,94.15,94.045,59.01005864]
[1770235296439,60.71520202,94.109,94.045,68.59905864]
[1770235296645,60.71520202,94.109,94.045,59.01005864]
[1770235296846,60.71520202,94.149,94.054,59.01005864]
[1770235297049,60.71520202,94.126,94.067,9.5868]
[1770235297446,60.71520202,94.126,94.054,59.01005864]
[1770235298549,60.71520202,94.122,94.058,9.5877]
[1770235298744,60.71520202,94.122,94.058,68.59775864]
[1770235298951,60.71520202,94.122,94.058,59.01005864]
[1770235299350,60.71520202,94.119,94.061,9.5874]
[1770235300854,70.29510202,94.135,94.069,68.59655864]
[1770235301049,60.71520202,94.135,94.069,68.59655864]
[1770235301252,9.5807,94.127,94.069,68.59655864]
[1770235301660,60.71520202,94.127,94.048,59.01005864]
[1770235302150,9.5833,94.102,94.048,59.01005864]
[1770235302353,60.71520202,94.107,94.048,59.01005864]
[1770235302555,60.71520202,94.107,94.056,9.5879]
[1770235302951,60.71520202,94.107,94.029,59.01005864]
[1770235303256,9.5843,94.092,94.029,59.01005864]
[1770235303553,60.71520202,94.107,94.029,59.01005864]
[1770235304059,9.5842,94.093,94.032,59.01005864]
[1770235304758,70.29840202,94.103,94.034,59.01005864]
[1770235306054,9.5841,94.094,94.034,59.01005864]
[1770235306256,70.29930202,94.094,94.034,59.01005864]
[1770235306456,60.71520202,94.094,94.034,59.01005864]
[1770235306664,9.5851,94.085,94.034,59.01005864]
[1770235306865,60.71520202,94.094,94.034,59.01005864]
[1770235307360,70.29940202,94.093,94.034,59.01005864]
[1770235307558,60.71520202,94.093,94.034,59.01005864]
[1770235307763,60.71520202,94.093,94.015,59.01005864]
[1770235308257,60.71520202,94.093,94.016,68.60205864]
[1770235308463,60.71520202,94.093,94.016,59.01005864]
[1770235308957,60.71520202,94.093,94.001,1.85007974]
[1770235308958,9.5852,94.083,94.022,68.60145864]
[1770235309756,60.71520202,94.08,94.009,68.60275864]
[1770235310161,60.71520202,94.101,94.03,59.01005864]
[1770235310764,60.71520202,94.101,94.032,59.01005864]
[1770235311257,9.5852,94.084,94.032,59.01005864]
[1770235311963,9.5852,94.084,94.009,11.72515182]
[1770235311964,70.30040202,94.084,94.01,59.01005864]
[1770235312558,60.71520202,94.084,94.031,9.5904]
[1770235312954,60.71520202,94.084,94.009,1.84998631]
[1770235312955,60.71520202,94.107,94.032,59.01005864]
[1770235313162,60.71520202,94.107,94.049,68.59865864]
[1770235313455,60.71520202,94.107,94.049,59.01005864]
[1770235313653,60.71520202,94.125,94.066,9.5869]
[1770235313852,60.71520202,94.125,94.049,59.01005864]
[1770235314060,60.71520202,94.125,94.04,7.93290036]
[1770235314061,60.71520202,94.125,94.054,70.26414299]
[1770235314456,60.71520202,94.125,94.083,9.5851]
[1770235314654,62.8392209,94.144,94.083,9.5851]
[1770235314965,62.8392209,94.144,94.07,60.38897748]
[1770235315360,62.8392209,94.144,94.083,9.5851]
[1770235315560,62.8392209,94.144,94.084,60.38897748]
[1770235317067,62.8392209,94.168,94.097,69.97267748]
[1770235317366,62.8392209,94.168,94.097,60.38897748]
[1770235318371,62.8392209,94.186,94.097,60.38897748]
[1770235318665,62.8392209,94.186,94.08,7.93290036]
[1770235318666,62.8392209,94.186,94.11,60.38897748]
[1770235319564,59.34576973,94.182,94.11,60.38897748]
[1770235319965,59.34576973,94.18,94.112,9.5821]
[1770235320761,26.29181127,94.268,94.07,7.93290036]
[1770235320762,59.34576973,94.178,94.092,59.37606518]
[1770235320963,69.2505165,94.178,94.069,59.37606518]
[1770235321169,59.34576973,94.136,94.069,59.37606518]
[1770235322261,59.34576973,94.123,94.054,59.37606518]
[1770235322567,59.34576973,94.119,94.017,59.37606518]
[1770235322760,59.34576973,94.089,94.017,59.37606518]
[1770235323371,59.34576973,94.089,94.017,68.96786518]
[1770235324067,68.93066973,94.086,94.017,68.96786518]
[1770235324268,68.93066973,94.086,94.017,59.37606518]
[1770235324661,59.34576973,94.072,93.998,59.37606518]
[1770235324862,59.34576973,94.072,94.001,59.37606518]
[1770235325660,59.34576973,94.09,94.015,59.37606518]
[1770235325871,59.34576973,94.09,93.993,59.37606518]
[1770235326270,7.93290036,94.1,93.993,59.37606518]
[1770235326271,59.34576973,94.063,93.993,59.37606518]
[1770235327469,68.93196973,94.074,93.993,59.37606518]
[1770235327670,59.34576973,94.061,93.993,59.37606518]
[1770235328178,59.34576973,94.059,93.993,59.37606518]
[1770235328576,59.34576973,94.059,93.973,59.37606518]
[1770235329075,59.34576973,94.059,93.99,59.37606518]
[1770235329267,59.34576973,94.059,93.992,59.37606518]
[1770235329470,59.34576973,94.083,94.006,68.96896518]
[1770235329663,59.34576973,94.083,94.006,59.37606518]
[1770235330379,59.34576973,94.083,94.024,68.96716518]
[1770235330575,59.34576973,94.103,94.024,59.37606518]
[1770235330873,59.34576973,94.103,94.047,9.5888]
[1770235331465,59.34576973,94.122,94.058,9.5877]
[1770235332270,7.93290036,94.16,94.047,59.37606518]
[1770235332271,59.34576973,94.12,94.048,9.5887]
[1770235332468,59.34576973,94.12,94.048,68.96476518]
[1770235332873,59.34576973,94.12,94.02,7.93290036]
[1770235332874,59.34576973,94.12,94.026,59.37606518]
[1770235333075,59.34576973,94.098,94.026,59.37606518]
[1770235333675,59.34576973,94.095,94.028,9.5908]
[1770235333871,59.34576973,94.095,94.028,59.37606518]
[1770235334072,7.93290036,94.14,94.028,59.37606518]
[1770235334073,59.34576973,94.115,94.028,59.37606518]
[1770235334278,59.34576973,94.115,94.02,7.93290036]
[1770235334279,59.34576973,94.112,94.029,59.37606518]
[1770235334678,59.34576973,94.112,94.055,9.588]
[1770235334879,9.5807,94.128,94.055,59.37606518]
[1770235335281,59.34576973,94.127,94.055,59.37606518]
[1770235335674,59.34576973,94.127,94.067,9.5867]
[1770235336276,59.34576973,94.15,94.078,68.96176518]
[1770235336476,68.92436973,94.148,94.078,59.37606518]
[1770235336684,59.34576973,94.197,94.078,59.37606518]
[1770235337189,59.34576973,94.158,94.087,68.96086518]
[1770235337388,59.34576973,94.158,94.087,59.37606518]
[1770235337789,59.34576973,94.155,94.087,59.37606518]
[1770235339183,59.34576973,94.152,94.087,59.37606518]
[1770235339489,7.93778927,94.18,94.068,59.37606518]
[1770235339490,59.34576973,94.15,94.068,59.37606518]
[1770235339690,59.34576973,94.129,94.068,59.37606518]
[1770235339892,2.66083955,94.128,94.068,59.37606518]
[1770235340190,2.66083955,94.127,94.068,59.37606518]
[1770235340492,62.00660928,94.126,94.068,59.37606518]
[1770235340788,2.66083955,94.125,94.068,59.37606518]
[1770235340987,2.66083955,94.124,94.068,59.37606518]
[1770235341194,2.66083955,94.123,94.068,59.37606518]
[1770235341491,59.34576973,94.14,94.068,59.37606518]
[1770235341684,7.93778927,94.18,94.068,59.37606518]
[1770235341685,59.34576973,94.138,94.068,59.37606518]
[1770235341885,2.66073521,94.137,94.069,59.37606518]
[1770235342084,2.66073521,94.136,94.069,59.37606518]
[1770235342286,2.66073521,94.135,94.069,59.37606518]
[1770235342586,68.92346973,94.157,94.079,59.37606518]
[1770235342779,59.34576973,94.155,94.079,59.37606518]
[1770235342983,2.66066298,94.154,94.094,59.37606518]
[1770235343184,9.5745,94.189,94.094,59.37606518]
[1770235343185,59.34576973,94.188,94.094,59.37606518]
[1770235343386,59.34576973,94.179,94.074,59.37606518]
[1770235343579,59.34576973,94.177,94.074,59.37606518]
[1770235343780,59.4971245,94.175,94.074,59.37606518]
[1770235343981,148.9226,94.198,94.057,9.5877]
[1770235343982,59.4971245,94.136,94.057,9.5877]
[1770235344183,59.4971245,94.136,94.03,7.93778927]
[1770235344184,59.4971245,94.134,94.058,63.13675558]
[1770235344487,62.15709195,94.133,94.058,63.13675558]
[1770235344688,71.73739195,94.132,94.061,9.5873]
[1770235344887,2.65996745,94.131,94.062,63.13675558]
[1770235345083,59.4971245,94.132,94.062,63.13675558]
[1770235345390,59.4971245,94.153,94.087,9.5847]
[1770235345694,62.15775099,94.152,94.087,9.5847]
[1770235345895,71.73605099,94.151,94.087,9.5847]
[1770235346091,2.66062649,94.15,94.087,9.5847]
[1770235346291,59.4971245,94.148,94.087,9.5847]
[1770235346493,59.4971245,94.146,94.077,9.5857]
[1770235346685,59.4971245,94.144,94.066,63.13675558]
[1770235346888,2.66062649,94.143,94.066,63.13675558]
[1770235347185,2.66062649,94.142,94.096,9.5838]
[1770235347387,9.5779,94.155,94.096,9.5838]
[1770235347586,2.66034608,94.154,94.096,9.5838]
[1770235347790,2.66034608,94.153,94.096,9.5838]
[1770235347996,2.66034608,94.152,94.096,9.5838]
[1770235348291,9.5787,94.147,94.086,9.5848]
[1770235348502,9.5787,94.147,94.043,19.1784]
[1770235348503,59.4971245,94.145,94.064,63.13675558]
[1770235348796,59.4971245,94.134,94.064,63.13675558]
[1770235349295,59.4971245,94.134,94.083,9.5852]
[1770235349995,59.4971245,94.134,94.074,63.13675558]
[1770235350196,59.4971245,94.153,94.074,63.13675558]
[1770235350593,59.4971245,94.151,94.074,63.13675558]
[1770235350792,62.15747058,94.15,94.074,63.13675558]
[1770235351091,9.5786,94.148,94.085,9.5849]
[1770235351289,2.66064547,94.147,94.085,9.5849]
[1770235351490,9.5786,94.148,94.074,63.13675558]
[1770235351491,59.4971245,94.148,94.074,63.13675558]
[1770235351690,2.66064644,94.147,94.074,63.13675558]
[1770235351897,59.4971245,94.139,94.076,9.5859]
[1770235352201,59.4971245,94.137,94.076,9.5859]
[1770235352398,59.4971245,94.135,94.076,9.5859]
[1770235352597,59.4971245,94.133,94.076,9.5859]
[1770235353497,59.4971245,94.131,94.064,9.587]
[1770235353696,7.93778927,94.16,94.064,9.587]
[1770235353697,59.4971245,94.129,94.064,9.587]
[1770235353900,62.15824705,94.128,94.055,63.13675558]
[1770235354096,59.4971245,94.126,94.055,63.13675558]
[1770235354405,9.5819,94.116,94.055,72.72475558]
[1770235354595,9.5819,94.116,94.055,63.13675558]
[1770235355199,7.93778927,94.16,94.055,63.13675558]
[1770235355200,69.0781245,94.125,94.063,9.5871]
[1770235355395,62.15836089,94.124,94.063,9.5871]
[1770235355593,2.66123639,94.123,94.063,9.5871]
[1770235355902,59.4971245,94.123,94.072,9.5863]
[1770235356097,2.66123103,94.122,94.063,63.13675558]
[1770235356397,2.66123103,94.121,94.063,63.13675558]
[1770235356599,59.4971245,94.123,94.072,9.5863]
[1770235356989,59.4971245,94.121,94.044,63.13675558]
[1770235357189,2.66118672,94.12,94.044,63.13675558]
[1770235357498,69.0787245,94.118,94.063,9.5872]
[1770235357697,2.66118672,94.117,94.063,9.5872]
[1770235357898,2.66118672,94.116,94.063,9.5872]
[1770235358099,69.0806245,94.1,94.026,63.13675558]
[1770235358296,59.4971245,94.099,94.026,63.13675558]
[1770235358795,59.4971245,94.08,94.004,73.01192109]
[1770235358998,59.4971245,94.119,94.004,63.13675558]
[1770235359197,9.5841,94.094,94.03,9.5906]
[1770235359498,59.4971245,94.098,94.027,63.13675558]
[1770235359999,9.5841,94.094,94.03,9.5905]
[1770235360200,69.0812245,94.094,94.03,9.5905]
[1770235361006,69.0820245,94.086,94.021,9.5914]
[1770235361602,69.0829245,94.078,94.021,9.5914]
[1770235362004,59.4971245,94.078,94.01,63.13675558]
[1770235362296,9.587,94.066,94.01,63.13675558]
[1770235362502,59.4971245,94.065,94.011,9.5925]
[1770235362803,59.4971245,94.09,94.011,63.13675558]
[1770235363201,9.5846,94.089,94.034,9.5901]
[1770235363504,69.0817245,94.089,94.034,9.5901]
[1770235363703,59.4971245,94.089,94.042,9.5893]
[1770235364901,59.4971245,94.145,94.046,63.13675558]
[1770235365101,59.4971245,94.145,94.03,7.93778927]
[1770235365102,59.4971245,94.145,94.051,63.13675558]
[1770235365302,59.4971245,94.145,94.091,9.5843]
[1770235365804,59.4971245,94.145,94.077,63.13675558]
[1770235366000,59.4971245,94.145,94.1,9.5834]
[1770235366205,59.4971245,94.145,94.077,63.13675558]
[1770235367805,59.4971245,94.145,94.09,9.5844]
[1770235368304,59.4971245,94.164,94.077,63.13675558]
[1770235368504,59.4971245,94.164,94.077,73.01192109]
[1770235368705,13.12326049,94.228,94.064,12.93717434]
[1770235368706,59.4971245,94.213,94.135,9.5798]
[1770235368905,59.4971245,94.211,94.135,9.5798]
[1770235369103,59.4971245,94.211,94.11,63.13675558]
[1770235369304,59.4971245,94.186,94.111,9.5822]
[1770235369606,59.4971245,94.186,94.058,19.1755]
[1770235369607,59.4971245,94.186,94.074,63.13675558]
[1770235369999,59.4971245,94.177,94.101,9.5833]
[1770235371212,59.4971245,94.177,94.11,9.5824]
[1770235371409,59.4971245,94.177,94.092,63.13675558]
[1770235371609,59.4971245,94.177,94.112,9.5822]
[1770235371804,59.4971245,94.177,94.092,63.13675558]
[1770235372512,59.4971245,94.177,94.121,9.5813]
[1770235373211,59.4971245,94.177,94.131,9.5803]
[1770235373402,59.4971245,94.239,94.111,63.13675558]
[1770235373806,63.23601319,94.209,94.111,63.13675558]
[1770235374806,63.23601319,94.191,94.122,9.5812]
[1770235375614,63.23601319,94.187,94.086,59.73430866]
[1770235377118,63.23601319,94.17,94.11,9.5824]
[1770235378317,63.23601319,94.157,94.1,9.5834]
[1770235379510,63.23601319,94.157,94.087,9.5847]
[1770235380613,9.5778,94.156,94.096,9.5839]
[1770235381009,63.23601319,94.157,94.086,59.73430866]
[1770235381615,63.23601319,94.157,94.105,9.5829]
[1770235381813,63.23601319,94.157,94.086,59.73430866]
[1770235382016,7.93778927,94.2,94.086,59.73430866]
[1770235382017,65.03721493,94.199,94.086,59.73430866]
[1770235382516,65.03721493,94.199,94.12,64.88813347]
[1770235382719,65.03721493,94.199,94.1,64.88813347]
[1770235383110,65.03721493,94.174,94.1,64.88813347]
[1770235384415,65.03721493,94.194,94.1,64.88813347]
[1770235385116,65.03721493,94.194,94.128,9.5806]
[1770235385617,65.03721493,94.252,94.18,7.93778927]
[1770235386120,65.03721493,94.252,94.19,9.5743]
[1770235386320,65.03721493,94.252,94.131,32.31641062]
[1770235386321,65.03721493,94.252,94.14,7.93778927]
[1770235386616,65.03721493,94.249,94.16,7.93778927]
[1770235386815,65.03721493,94.299,94.18,7.93778927]
[1770235387212,74.60221493,94.282,94.205,9.5727]
[1770235387410,65.03721493,94.282,94.201,64.88813347]
[1770235387816,65.03721493,94.282,94.216,9.5716]
[1770235388620,65.03721493,94.303,94.228,9.5704]
[1770235388820,65.03721493,94.3,94.228,9.5704]
[1770235389421,65.03721493,94.3,94.2,7.93778927]
[1770235389422,65.03721493,94.298,94.214,9.5718]
[1770235390015,9.5648,94.284,94.2,17.51108927]
[1770235390318,1.84621261,94.34,94.2,9.5733]
[1770235390319,65.03721493,94.283,94.2,9.5733]
[1770235390817,65.03721493,94.26,94.196,64.88813347]
[1770235391029,19.1209,94.327,94.18,9.5753]
[1770235391030,65.03721493,94.284,94.18,72.82592274]
[1770235391521,65.03721493,94.269,94.18,64.88813347]
[1770235392221,65.03721493,94.252,94.159,64.88813347]
[1770235392817,65.03721493,94.231,94.121,64.88813347]
[1770235393516,65.03721493,94.229,94.148,9.5785]
[1770235394422,65.03721493,94.226,94.148,9.5785]
[1770235395422,65.03721493,94.226,94.16,64.88813347]
[1770235395622,65.03721493,94.247,94.16,64.88813347]
[1770235395822,65.03721493,94.247,94.134,149.0226]
[1770235395823,65.03721493,94.247,94.171,64.88813347]
[1770235396331,65.03721493,94.278,94.192,64.88813347]
[1770235397718,65.03721493,94.329,94.23,7.92118755]
[1770235397918,65.03721493,94.329,94.231,64.88813347]
[1770235398122,65.03721493,94.35,94.251,64.88813347]
[1770235398420,19.0948,94.456,94.292,64.88813347]
[1770235398622,2.553e-05,94.416,94.35,7.92118755]
[1770235398920,65.03721493,94.435,94.351,64.88813347]
[1770235400025,74.58681493,94.434,94.351,64.88813347]
[1770235400224,65.03721493,94.499,94.371,64.88813347]
[1770235400719,65.03721493,94.496,94.391,64.88813347]
[1770235401723,65.03721493,94.493,94.396,64.88813347]
[1770235402027,65.03721493,94.527,94.41,7.92118755]
[1770235402222,65.03721493,94.509,94.414,9.5516]
[1770235402423,65.03721493,94.509,94.396,64.88813347]
[1770235402626,65.03721493,94.504,94.4,9.553]
[1770235402921,65.03721493,94.504,94.4,74.44113347]
[1770235404019,65.03721493,94.504,94.4,64.88813347]
[1770235404226,60.7649738,94.499,94.386,63.09214914]
[1770235404525,60.7649738,94.499,94.41,7.92118755]
[1770235404827,60.7649738,94.499,94.418,63.09214914]
[1770235405822,60.7649738,94.495,94.392,63.09214914]
[1770235406217,9.5437,94.493,94.393,9.5537]
[1770235406417,60.7649738,94.492,94.394,63.09214914]
[1770235406919,60.7649738,94.487,94.394,63.09214914]
[1770235407924,60.7649738,94.487,94.401,63.09214914]
[1770235408525,60.7649738,94.483,94.386,9.5543]
[1770235408730,60.7649738,94.479,94.357,63.09214914]